[Event "European Women's Chess Championship (1-48)"]
[Site "Batumi, Georgia"]
[Date "2026.05.25"]
[Round "1.1"]
[White "Tsolakidou, Stavroula"]
[Black "Calzetta Ruiz, Monica"]
[Result "1-0"]
[TimeControl "90min/ 40moves+ 30min+ 30-sec increment from move 1"]
[WhiteTitle "-"]
[BlackTitle "-"]
[WhiteFideId "4264312"]
[BlackFideId "2204185"]
[WhiteElo "2455"]
[BlackElo "2199"]

1. e4 {[%clk 01:30:55]} {[%emt 00:00:04]} c5 {[%clk 01:30:53]} {[%emt
00:00:07]} 2. Nf3 {[%clk 01:31:19]} {[%emt 00:00:06]} g6 {[%clk 01:31:13]}
{[%emt 00:00:11]} 3. c3 {[%clk 01:31:01]} {[%emt 00:00:48]} d5 {[%clk
01:31:31]} {[%emt 00:00:11]} 4. e5 {[%clk 01:31:12]} {[%emt 00:00:19]} a6
{[%clk 01:31:50]} {[%emt 00:00:12]} 5. d4 {[%clk 01:30:43]} {[%emt 00:00:59]}
Nc6 {[%clk 01:31:58]} {[%emt 00:00:22]} 6. h3 {[%clk 01:27:07]} {[%emt
00:04:06]} Bg7 {[%clk 01:32:04]} {[%emt 00:00:24]} 7. g3 {[%clk 01:26:58]}
{[%emt 00:00:39]} Bf5 {[%clk 01:29:12]} {[%emt 00:03:21]} 8. Bg2 {[%clk
01:26:20]} {[%emt 00:01:09]} Qd7 {[%clk 01:29:01]} {[%emt 00:00:41]} 9. Nh4
{[%clk 01:23:47]} {[%emt 00:03:02]} Be4 {[%clk 01:28:19]} {[%emt 00:01:13]} 10.
f3 {[%clk 01:15:17]} {[%emt 00:09:00]} Bxb1 {[%clk 01:25:46]} {[%emt 00:03:02]}
11. Rxb1 {[%clk 01:15:43]} {[%emt 00:00:04]} cxd4 {[%clk 01:24:20]} {[%emt
00:01:56]} 12. cxd4 {[%clk 01:15:34]} {[%emt 00:00:39]} e6 {[%clk 01:14:37]}
{[%emt 00:10:13]} 13. Be3 {[%clk 01:03:07]} {[%emt 00:12:57]} Bf8 {[%clk
01:13:52]} {[%emt 00:01:15]} 14. f4 {[%clk 00:59:55]} {[%emt 00:03:43]} Be7
{[%clk 01:02:29]} {[%emt 00:11:52]} 15. Nf3 {[%clk 00:59:58]} {[%emt 00:00:27]}
h5 {[%clk 01:02:41]} {[%emt 00:00:18]} 16. O-O {[%clk 00:50:02]} {[%emt
00:10:26]} Nh6 {[%clk 01:01:02]} {[%emt 00:02:09]} 17. a3 {[%clk 00:50:15]}
{[%emt 00:00:19]} Rc8 {[%clk 00:59:24]} {[%emt 00:02:08]} 18. Bf2 {[%clk
00:45:39]} {[%emt 00:05:06]} Na5 {[%clk 00:56:37]} {[%emt 00:03:16]} 19. Ne1
{[%clk 00:40:10]} {[%emt 00:05:58]} Nf5 {[%clk 00:39:23]} {[%emt 00:17:45]} 20.
Nd3 {[%clk 00:39:13]} {[%emt 00:01:26]} Nc4 {[%clk 00:31:44]} {[%emt 00:08:10]}
21. Qe2 {[%clk 00:37:24]} {[%emt 00:02:19]} Rc6 {[%clk 00:16:58]} {[%emt
00:15:16]} 22. a4 {[%clk 00:36:09]} {[%emt 00:01:46]} Qc8 {[%clk 00:12:23]}
{[%emt 00:05:04]} 23. Rbc1 {[%clk 00:34:27]} {[%emt 00:02:12]} b6 {[%clk
00:06:11]} {[%emt 00:06:42]} 24. b3 {[%clk 00:28:47]} {[%emt 00:06:10]} Na5
{[%clk 00:06:36]} {[%emt 00:00:05]} 25. Rxc6 {[%clk 00:26:56]} Nxc6 {[%clk
00:06:13]} {[%emt 00:03:15]} 26. Qb2 {[%clk 00:22:54]} {[%emt 00:04:32]} Kd7
{[%clk 00:04:25]} {[%emt 00:02:18]} 27. b4 {[%clk 00:22:22]} {[%emt 00:01:03]}
Qa8 {[%clk 00:01:34]} {[%emt 00:03:21]} 28. Rc1 {[%clk 00:21:15]} {[%emt
00:01:37]} Rc8 {[%clk 00:01:53]} {[%emt 00:00:10]} 29. Bf1 {[%clk 00:19:44]}
{[%emt 00:02:01]} Bd8 {[%clk 00:00:35]} {[%emt 00:01:49]} 30. g4 {[%clk
00:18:00]} {[%emt 00:02:13]} hxg4 {[%clk 00:01:00]} {[%emt 00:00:04]} 31. hxg4
{[%clk 00:18:27]} {[%emt 00:00:03]} Nfe7 {[%clk 00:00:41]} {[%emt 00:00:50]} 32.
Ne1 {[%clk 00:15:45]} {[%emt 00:03:11]} Nb8 {[%clk 00:00:52]} {[%emt 00:00:19]}
33. b5 {[%clk 00:15:28]} {[%emt 00:00:47]} a5 {[%clk 00:00:43]} {[%emt
00:00:39]} 34. Nf3 {[%clk 00:15:07]} {[%emt 00:00:51]} Qb7 {[%clk 00:01:03]}
{[%emt 00:00:11]} 35. Bd3 {[%clk 00:11:28]} {[%emt 00:04:09]} Rxc1+ {[%clk
00:00:58]} {[%emt 00:00:34]} 36. Qxc1 {[%clk 00:11:54]} {[%emt 00:00:04]} Qc7
{[%clk 00:01:03]} {[%emt 00:00:25]} 37. Qd2 {[%clk 00:06:52]} {[%emt 00:05:32]}
Ke8 {[%clk 00:01:26]} {[%emt 00:00:08]} 38. Ng5 {[%clk 00:04:55]} {[%emt
00:02:27]} Nd7 {[%clk 00:01:48]} {[%emt 00:00:07]} 39. Nh7 {[%clk 00:03:11]}
{[%emt 00:02:15]} Ng8 {[%clk 00:01:35]} {[%emt 00:00:42]} 40. f5 {[%clk
00:02:01]} {[%emt 00:01:40]} gxf5 {[%clk 00:01:53]} {[%emt 00:00:12]} 41. gxf5
{[%clk 00:02:26]} {[%emt 00:00:05]} Nxe5 {[%clk 00:12:21]} {[%emt 00:20:03]} 42.
dxe5 {[%clk 00:31:51]} {[%emt 00:01:06]} Qxe5 {[%clk 00:12:47]} {[%emt
00:00:03]} 43. fxe6 {[%clk 00:30:20]} {[%emt 00:02:00]} Qg7+ {[%clk 00:13:11]}
{[%emt 00:00:06]} 44. Kf1 {[%clk 00:29:16]} {[%emt 00:01:34]} fxe6 {[%clk
00:13:37]} {[%emt 00:00:04]} 45. Qc1 {[%clk 00:17:59]} {[%emt 00:11:48]} Ne7
{[%clk 00:12:43]} {[%emt 00:01:24]} 46. Qg5 {[%clk 00:14:20]} {[%emt 00:04:10]}
Nf5 {[%clk 00:07:19]} {[%emt 00:05:53]} 47. Qxg7 {[%clk 00:11:11]} {[%emt
00:03:39]} Nxg7 {[%clk 00:07:47]} {[%emt 00:00:02]} 48. Bg6+ {[%clk 00:11:35]}
{[%emt 00:00:05]} Kd7 {[%clk 00:08:11]} {[%emt 00:00:06]} 49. Bd4 {[%clk
00:10:17]} {[%emt 00:01:49]} Nf5 {[%clk 00:07:48]} {[%emt 00:00:53]} 50. Nf8+
{[%clk 00:10:09]} {[%emt 00:00:38]} Kd6 {[%clk 00:06:12]} {[%emt 00:02:06]} 51.
Bxf5 {[%clk 00:10:34]} {[%emt 00:00:05]} exf5 {[%clk 00:06:34]} {[%emt
00:00:08]} 52. Ng6 {[%clk 00:10:47]} {[%emt 00:00:17]} Bc7 {[%clk 00:04:10]}
{[%emt 00:02:54]} 53. Ke2 {[%clk 00:10:45]} {[%emt 00:00:32]} Bd8 {[%clk
00:04:31]} {[%emt 00:00:09]} 54. Kf3 {[%clk 00:09:42]} {[%emt 00:01:32]} Bc7
{[%clk 00:04:43]} {[%emt 00:00:18]} 55. Nf4 {[%clk 00:09:08]} {[%emt 00:01:04]}
Bd8 {[%clk 00:04:55]} {[%emt 00:00:18]} 56. Kg3 {[%clk 00:09:07]} {[%emt
00:00:30]} Bc7 {[%clk 00:03:56]} {[%emt 00:01:29]} 57. Kh4 {[%clk 00:09:31]}
{[%emt 00:00:06]} Bd8+ {[%clk 00:04:08]} {[%emt 00:00:18]} 58. Kh5 {[%clk
00:09:55]} {[%emt 00:00:06]} 1-0

[Event "European Women's Chess Championship (1-48)"]
[Site "Batumi, Georgia"]
[Date "2026.05.25"]
[Round "1.2"]
[White "Maisuradze, Nino"]
[Black "Osmak, Yuliia"]
[Result "0-1"]
[TimeControl "90min/ 40moves+ 30min+ 30-sec increment from move 1"]
[WhiteTitle "-"]
[BlackTitle "-"]
[WhiteFideId "13601717"]
[BlackFideId "14101602"]
[WhiteElo "2198"]
[BlackElo "2451"]

1. d4 {[%clk 01:30:59]} Nf6 {[%clk 01:30:56]} {[%emt 00:00:05]} 2. c4 {[%clk
01:31:10]} {[%emt 00:00:19]} e6 {[%clk 01:31:22]} {[%emt 00:00:03]} 3. Nc3
{[%clk 01:31:25]} {[%emt 00:00:15]} Bb4 {[%clk 01:31:42]} {[%emt 00:00:10]} 4.
e3 {[%clk 01:31:41]} {[%emt 00:00:14]} O-O {[%clk 01:31:45]} {[%emt 00:00:27]}
5. a3 {[%clk 01:31:47]} {[%emt 00:00:24]} Bxc3+ {[%clk 01:30:36]} {[%emt
00:01:41]} 6. bxc3 {[%clk 01:32:15]} d6 {[%clk 01:30:58]} {[%emt 00:00:08]} 7.
f3 {[%clk 01:29:45]} {[%emt 00:03:00]} c5 {[%clk 01:29:37]} {[%emt 00:01:51]} 8.
e4 {[%clk 01:27:29]} {[%emt 00:02:46]} Nc6 {[%clk 01:28:01]} {[%emt 00:02:07]}
9. Ra2 {[%clk 01:14:30]} {[%emt 00:13:29]} Qa5 {[%clk 01:19:29]} {[%emt
00:09:02]} 10. Bd2 {[%clk 00:58:48]} {[%emt 00:16:11]} Qb6 {[%clk 00:52:17]}
{[%emt 00:27:43]} 11. Be3 {[%clk 00:43:48]} {[%emt 00:15:30]} d5 {[%clk
00:38:24]} {[%emt 00:14:23]} 12. e5 {[%clk 00:37:20]} {[%emt 00:06:57]} Nd7
{[%clk 00:38:13]} {[%emt 00:00:40]} 13. cxd5 {[%clk 00:22:12]} {[%emt
00:15:38]} exd5 {[%clk 00:38:31]} {[%emt 00:00:12]} 14. f4 {[%clk 00:19:20]}
{[%emt 00:03:22]} cxd4 {[%clk 00:32:32]} {[%emt 00:06:29]} 15. cxd4 {[%clk
00:18:56]} {[%emt 00:00:55]} Qa5+ {[%clk 00:27:05]} {[%emt 00:05:57]} 16. Bd2
{[%clk 00:18:06]} {[%emt 00:01:20]} Qb6 {[%clk 00:24:03]} {[%emt 00:03:33]} 17.
Bc3 {[%clk 00:15:35]} {[%emt 00:03:01]} Re8 {[%clk 00:21:02]} {[%emt 00:03:31]}
18. Nf3 {[%clk 00:15:35]} {[%emt 00:00:30]} Nf6 {[%clk 00:20:40]} {[%emt
00:00:51]} 19. Bd3 {[%clk 00:10:10]} {[%emt 00:05:55]} Ne4 {[%clk 00:20:53]}
{[%emt 00:00:17]} 20. Ba1 {[%clk 00:01:36]} {[%emt 00:09:04]} Qa5+ {[%clk
00:18:55]} {[%emt 00:02:28]} 21. Kf1 {[%clk 00:01:58]} {[%emt 00:00:08]} b6
{[%clk 00:08:39]} {[%emt 00:10:46]} 22. Rc2 {[%clk 00:01:19]} {[%emt 00:01:09]}
Ne7 {[%clk 00:08:50]} {[%emt 00:00:18]} 23. Bb2 {[%clk 00:00:54]} {[%emt
00:00:56]} Ba6 {[%clk 00:08:10]} {[%emt 00:01:10]} 24. Qe2 {[%clk 00:01:07]}
{[%emt 00:00:16]} Bxd3 {[%clk 00:08:02]} {[%emt 00:00:38]} 25. Qxd3 {[%clk
00:01:36]} {[%emt 00:00:02]} Rac8 {[%clk 00:08:18]} {[%emt 00:00:14]} 26. Ke2
{[%clk 00:01:08]} {[%emt 00:00:58]} Rxc2+ {[%clk 00:08:02]} {[%emt 00:00:46]}
27. Qxc2 {[%clk 00:01:37]} {[%emt 00:00:01]} Qb5+ {[%clk 00:08:18]} {[%emt
00:00:14]} 28. Ke1 {[%clk 00:00:44]} {[%emt 00:01:23]} Rc8 {[%clk 00:08:34]}
{[%emt 00:00:14]} 29. Qb1 {[%clk 00:00:32]} {[%emt 00:00:42]} Qb3 {[%clk
00:07:49]} {[%emt 00:01:14]} 0-1

[Event "European Women's Chess Championship (1-48)"]
[Site "Batumi, Georgia"]
[Date "2026.05.25"]
[Round "1.3"]
[White "Fataliyeva, Ulviyya"]
[Black "Olde, Margareth"]
[Result "1-0"]
[TimeControl "90min/ 40moves+ 30min+ 30-sec increment from move 1"]
[WhiteTitle "-"]
[BlackTitle "-"]
[WhiteFideId "13403052"]
[BlackFideId "4503082"]
[WhiteElo "2450"]
[BlackElo "2194"]

1. d4 {[%clk 01:24:14]} {[%emt 00:06:44]} d5 {[%clk 01:30:29]} {[%emt
00:00:33]} 2. Nf3 {[%clk 01:24:34]} {[%emt 00:00:10]} Nf6 {[%clk 01:30:30]}
{[%emt 00:00:28]} 3. Bf4 {[%clk 01:23:37]} {[%emt 00:01:27]} c5 {[%clk
01:28:43]} {[%emt 00:02:18]} 4. e3 {[%clk 01:23:03]} {[%emt 00:01:03]} Nc6
{[%clk 01:27:58]} {[%emt 00:01:15]} 5. Nbd2 {[%clk 01:19:05]} {[%emt 00:04:27]}
cxd4 {[%clk 01:18:48]} {[%emt 00:09:41]} 6. exd4 {[%clk 01:18:03]} {[%emt
00:01:32]} Qb6 {[%clk 01:17:08]} {[%emt 00:02:11]} 7. Nb3 {[%clk 01:17:46]}
{[%emt 00:00:47]} Bg4 {[%clk 01:04:56]} {[%emt 00:12:42]} 8. Be2 {[%clk
01:15:37]} {[%emt 00:02:39]} a5 {[%clk 01:01:21]} {[%emt 00:04:07]} 9. a4
{[%clk 01:14:34]} {[%emt 00:01:32]} e6 {[%clk 00:58:56]} {[%emt 00:02:55]} 10.
h3 {[%clk 01:10:39]} {[%emt 00:04:24]} Bh5 {[%clk 00:57:56]} {[%emt 00:01:30]}
11. Bb5 {[%clk 01:03:38]} {[%emt 00:07:32]} Ne4 {[%clk 00:52:36]} {[%emt
00:05:50]} 12. g4 {[%clk 01:01:21]} {[%emt 00:02:47]} Bg6 {[%clk 00:52:29]}
{[%emt 00:00:37]} 13. Ne5 {[%clk 01:01:19]} {[%emt 00:00:29]} f6 {[%clk
00:36:52]} {[%emt 00:16:10]} 14. Nxg6 {[%clk 00:38:55]} {[%emt 00:22:53]} hxg6
{[%clk 00:37:13]} {[%emt 00:00:08]} 15. Bd3 {[%clk 00:38:43]} {[%emt 00:00:43]}
g5 {[%clk 00:29:44]} {[%emt 00:07:59]} 16. Be3 {[%clk 00:36:40]} {[%emt
00:02:33]} Nb4 {[%clk 00:23:36]} {[%emt 00:06:39]} 17. Bb5+ {[%clk 00:35:04]}
{[%emt 00:02:06]} Kf7 {[%clk 00:23:30]} {[%emt 00:00:36]} 18. c3 {[%clk
00:34:42]} {[%emt 00:00:52]} Na6 {[%clk 00:23:13]} {[%emt 00:00:46]} 19. Bd3
{[%clk 00:29:00]} {[%emt 00:06:13]} Be7 {[%clk 00:14:31]} {[%emt 00:09:13]} 20.
Kf1 {[%clk 00:20:37]} {[%emt 00:08:52]} Nd6 {[%clk 00:10:31]} {[%emt 00:04:31]}
21. Bc2 {[%clk 00:18:31]} {[%emt 00:02:35]} Nc4 {[%clk 00:10:16]} {[%emt
00:00:45]} 22. Bc1 {[%clk 00:13:50]} {[%emt 00:05:12]} Rh6 {[%clk 00:06:18]}
{[%emt 00:04:29]} 23. Qf3 {[%clk 00:13:51]} {[%emt 00:00:27]} Kg8 {[%clk
00:06:05]} {[%emt 00:00:43]} 24. h4 {[%clk 00:12:59]} {[%emt 00:01:23]} Rxh4
{[%clk 00:03:16]} {[%emt 00:03:19]} 25. Rxh4 {[%clk 00:13:22]} {[%emt
00:00:06]} gxh4 {[%clk 00:03:43]} {[%emt 00:00:02]} 26. Qd3 {[%clk 00:11:20]}
{[%emt 00:02:32]} Bf8 {[%clk 00:01:54]} {[%emt 00:02:20]} 27. Qh7+ {[%clk
00:09:16]} {[%emt 00:02:33]} Kf7 {[%clk 00:02:22]} {[%emt 00:00:03]} 28. Bh6
{[%clk 00:07:59]} {[%emt 00:01:46]} f5 {[%clk 00:01:14]} {[%emt 00:01:39]} 29.
gxf5 {[%clk 00:07:39]} {[%emt 00:00:49]} e5 {[%clk 00:01:36]} {[%emt 00:00:08]}
30. Bg5 {[%clk 00:07:11]} {[%emt 00:00:57]} e4 {[%clk 00:00:34]} {[%emt
00:01:33]} 31. Bd1 {[%clk 00:06:15]} {[%emt 00:01:26]} Ke8 {[%clk 00:01:00]}
{[%emt 00:00:04]} 32. Bh5+ {[%clk 00:02:50]} {[%emt 00:03:54]} Kd7 {[%clk
00:01:26]} {[%emt 00:00:04]} 33. f6 {[%clk 00:03:05]} {[%emt 00:00:16]} Qxb3
{[%emt 00:01:26]} 34. fxg7 {[%clk 00:03:31]} {[%emt 00:00:01]} Bxg7 {[%clk
00:00:44]} {[%emt 00:00:19]} 35. Qxg7+ {[%clk 00:03:49]} {[%emt 00:00:11]} Kc8
{[%clk 00:00:33]} {[%emt 00:00:42]} 36. Bf4 {[%clk 00:03:19]} {[%emt 00:01:00]}
Nd2+ {[%clk 00:00:32]} {[%emt 00:00:31]} 37. Bxd2 {[%clk 00:03:29]} {[%emt
00:00:20]} Qxb2 {[%clk 00:00:59]} {[%emt 00:00:03]} 38. Bf4 {[%clk 00:01:38]}
{[%emt 00:02:20]} Qxa1+ {[%clk 00:01:23]} {[%emt 00:00:07]} 39. Kg2 {[%clk
00:02:01]} {[%emt 00:00:06]} Qxa4 {[%clk 00:01:23]} {[%emt 00:00:32]} 40. Bg4+
{[%clk 00:02:22]} {[%emt 00:00:08]} Kd8 {[%clk 00:01:48]} {[%emt 00:00:06]} 41.
Qf8+ {[%clk 00:02:44]} {[%emt 00:00:07]} Qe8 {[%clk 00:02:12]} {[%emt
00:00:06]} 42. Qd6+ {[%clk 00:03:09]} {[%emt 00:00:04]} 1-0

[Event "European Women's Chess Championship (1-48)"]
[Site "Batumi, Georgia"]
[Date "2026.05.25"]
[Round "1.4"]
[White "Chernyak, Viktoria"]
[Black "Javakhishvili, Lela"]
[Result "0-1"]
[TimeControl "90min/ 40moves+ 30min+ 30-sec increment from move 1"]
[WhiteTitle "-"]
[BlackTitle "-"]
[WhiteFideId "24165956"]
[BlackFideId "13601458"]
[WhiteElo "2191"]
[BlackElo "2442"]

1. d4 {[%clk 01:30:58]} {[%emt 00:00:02]} Nf6 {[%clk 01:30:44]} {[%emt
00:00:16]} 2. c4 {[%clk 01:31:24]} {[%emt 00:00:05]} e6 {[%clk 01:31:06]}
{[%emt 00:00:07]} 3. Nc3 {[%clk 01:31:50]} {[%emt 00:00:05]} d5 {[%clk
01:29:29]} {[%emt 00:02:07]} 4. Bg5 {[%clk 01:31:56]} {[%emt 00:00:24]} Nbd7
{[%clk 01:27:36]} {[%emt 00:02:23]} 5. e3 {[%clk 01:28:50]} {[%emt 00:03:36]}
h6 {[%clk 01:26:50]} {[%emt 00:01:16]} 6. Bxf6 {[%clk 01:25:27]} {[%emt
00:03:53]} Nxf6 {[%clk 01:27:08]} {[%emt 00:00:11]} 7. cxd5 {[%clk 01:25:46]}
{[%emt 00:00:11]} exd5 {[%clk 01:27:06]} {[%emt 00:00:32]} 8. Bd3 {[%clk
01:26:12]} {[%emt 00:00:04]} Bd6 {[%clk 01:25:54]} {[%emt 00:01:42]} 9. Qc2
{[%clk 01:22:49]} {[%emt 00:03:54]} O-O {[%clk 01:24:14]} {[%emt 00:02:10]} 10.
Nge2 {[%clk 01:15:08]} {[%emt 00:08:12]} c6 {[%clk 01:22:28]} {[%emt 00:02:15]}
11. Ng3 {[%clk 01:13:37]} {[%emt 00:02:01]} Re8 {[%clk 01:21:56]} {[%emt
00:01:02]} 12. a3 {[%clk 01:09:36]} {[%emt 00:04:31]} a5 {[%clk 01:20:07]}
{[%emt 00:02:19]} 13. O-O {[%clk 01:05:27]} {[%emt 00:04:39]} Ng4 {[%clk
01:14:01]} {[%emt 00:06:35]} 14. Be2 {[%clk 00:59:17]} {[%emt 00:06:41]} h5
{[%clk 01:05:34]} {[%emt 00:08:57]} 15. Bxg4 {[%clk 00:51:31]} {[%emt
00:08:16]} hxg4 {[%clk 01:05:43]} {[%emt 00:00:21]} 16. Rfe1 {[%clk 00:51:52]}
{[%emt 00:00:09]} Be6 {[%clk 00:51:08]} {[%emt 00:15:04]} 17. e4 {[%clk
00:47:48]} {[%emt 00:04:34]} dxe4 {[%clk 00:47:18]} {[%emt 00:04:21]} 18. Rxe4
{[%clk 00:45:02]} {[%emt 00:03:16]} b5 {[%clk 00:44:06]} {[%emt 00:03:41]} 19.
Rae1 {[%clk 00:29:48]} {[%emt 00:15:44]} b4 {[%clk 00:39:28]} {[%emt 00:05:08]}
20. axb4 {[%clk 00:26:52]} {[%emt 00:03:26]} axb4 {[%clk 00:39:45]} {[%emt
00:00:13]} 21. Nb1 {[%clk 00:19:49]} {[%emt 00:07:34]} Re7 {[%clk 00:31:22]}
{[%emt 00:08:52]} 22. R4e2 {[%clk 00:17:58]} {[%emt 00:02:21]} Bxg3 {[%clk
00:24:43]} {[%emt 00:07:08]} 23. hxg3 {[%clk 00:18:19]} {[%emt 00:00:10]} Qxd4
{[%clk 00:25:01]} {[%emt 00:00:13]} 24. Qxc6 {[%clk 00:14:10]} {[%emt
00:04:39]} Bd5 {[%clk 00:23:08]} {[%emt 00:02:22]} 25. Qc2 {[%clk 00:13:37]}
{[%emt 00:01:03]} Rxe2 {[%clk 00:22:44]} {[%emt 00:00:54]} 26. Rxe2 {[%clk
00:13:15]} {[%emt 00:00:52]} Bb7 {[%clk 00:19:54]} {[%emt 00:03:19]} 27. Qd2
{[%clk 00:08:02]} {[%emt 00:05:43]} Qc4 {[%clk 00:19:09]} {[%emt 00:01:14]} 28.
Re3 {[%clk 00:03:19]} {[%emt 00:05:13]} Qc6 {[%clk 00:16:28]} {[%emt 00:03:11]}
29. f3 {[%clk 00:03:44]} {[%emt 00:00:06]} gxf3 {[%clk 00:16:44]} {[%emt
00:00:13]} 30. Rxf3 {[%clk 00:01:30]} {[%emt 00:02:44]} Qg6 {[%clk 00:15:26]}
{[%emt 00:01:48]} 31. Rf1 {[%clk 00:01:26]} {[%emt 00:00:34]} Qxg3 {[%clk
00:15:26]} {[%emt 00:00:29]} 32. Qe2 {[%clk 00:01:38]} {[%emt 00:00:18]} Rd8
{[%clk 00:11:45]} {[%emt 00:04:09]} 33. Rf2 {[%clk 00:01:14]} {[%emt 00:00:55]}
Qd3 {[%clk 00:07:39]} {[%emt 00:04:34]} 34. Qxd3 {[%clk 00:00:44]} {[%emt
00:01:02]} Rxd3 {[%clk 00:08:06]} {[%emt 00:00:03]} 35. Nd2 {[%clk 00:01:08]}
{[%emt 00:00:06]} Bd5 {[%clk 00:08:05]} {[%emt 00:00:30]} 36. Re2 {[%clk
00:00:44]} {[%emt 00:00:55]} f6 {[%clk 00:07:51]} {[%emt 00:00:43]} 37. Kf2
{[%clk 00:01:12]} {[%emt 00:00:03]} Kf7 {[%clk 00:07:57]} {[%emt 00:00:23]} 38.
Nf1 {[%clk 00:01:30]} {[%emt 00:00:12]} Be6 {[%clk 00:06:12]} {[%emt 00:02:14]}
39. Rc2 {[%clk 00:01:31]} {[%emt 00:00:30]} f5 {[%clk 00:06:05]} {[%emt
00:00:37]} 40. Re2 {[%clk 00:00:38]} {[%emt 00:01:23]} g5 {[%clk 00:06:15]}
{[%emt 00:00:19]} 41. g3 {[%clk 00:00:41]} {[%emt 00:00:27]} Bd5 {[%clk
00:03:01]} {[%emt 00:03:44]} 42. Re3 {[%clk 00:24:11]} {[%emt 00:07:01]} Rd1
{[%clk 00:25:19]} {[%emt 00:08:11]} 43. Re1 {[%clk 00:22:07]} {[%emt 00:02:35]}
Rxe1 {[%clk 00:25:29]} {[%emt 00:00:19]} 44. Kxe1 {[%clk 00:22:35]} {[%emt
00:00:02]} Kf6 {[%clk 00:25:44]} {[%emt 00:00:14]} 45. Kd2 {[%clk 00:22:23]}
{[%emt 00:00:42]} Ke5 {[%clk 00:24:09]} {[%emt 00:02:05]} 46. Kd3 {[%clk
00:21:37]} {[%emt 00:01:16]} f4 {[%clk 00:18:18]} {[%emt 00:06:20]} 47. gxf4+
{[%clk 00:21:34]} {[%emt 00:00:33]} Kxf4 {[%clk 00:18:19]} {[%emt 00:00:29]} 48.
Ne3 {[%clk 00:18:34]} {[%emt 00:03:31]} Be6 {[%clk 00:16:40]} {[%emt 00:02:07]}
49. Ke2 {[%clk 00:15:23]} {[%emt 00:03:43]} Ke4 {[%clk 00:16:41]} {[%emt
00:00:28]} 50. Nc2 {[%clk 00:12:21]} {[%emt 00:03:32]} Bc4+ {[%clk 00:14:19]}
{[%emt 00:02:52]} 51. Kd2 {[%clk 00:11:15]} {[%emt 00:01:37]} g4 {[%clk
00:11:33]} {[%emt 00:03:16]} 52. Ke1 {[%clk 00:07:20]} {[%emt 00:04:25]} b3
{[%clk 00:08:14]} {[%emt 00:03:49]} 53. Nb4 {[%clk 00:07:04]} {[%emt 00:00:46]}
g3 {[%clk 00:07:26]} {[%emt 00:01:18]} 54. Nc6 {[%clk 00:07:31]} {[%emt
00:00:03]} Bd3 {[%clk 00:06:00]} {[%emt 00:01:55]} 55. Nb4 {[%clk 00:05:36]}
{[%emt 00:02:26]} Bb5 {[%clk 00:06:16]} {[%emt 00:00:14]} 0-1